Cogmind - Beta 15 @@@ ROGUE MODE // 2025.05.31 @ 04:07:15 Player: Xenocore Result: Destroyed by Y-54 Guardian with Gatling Laser Performance ------------- Evolutions (4) 2000 Regions Visited (6) 1200 Robots Destroyed (17) 85 Value Destroyed (567) 567 Prototype IDs (6) 120 Alien Tech Used (0) 0 Bonus (640) 640 TOTAL SCORE: 4612 Bonus ------- Registered with UFD 300 Met Optimus in HQ 500 Friendly Fire -160 Cogmind --------- Core Integrity 0/850 Matter 0/500 Energy 81/100 System Corruption 19% Temperature Cool (12) Movement Core (100) Ox1 Location -6/Factory Parts ------- > --- POWER (2) -------- (None) > --- PROPULSION (4) --- (None) > --- UTILITY (6) ------ High-capacity Matter Pod > --- WEAPON (3) ------- (None) > --- INVENTORY (5) ---- Biomechanical Wings Biomechanical Wings Biomechanical Wings Biomechanical Wings Magnetic Acceleration Cannon Peak State ------------ > --- POWER ------------ Light Deuterium Engine Light Nuclear Core > --- PROPULSION ------- Overtuned Titanium Leg Overtuned Titanium Leg Overtuned Titanium Leg Overtuned Titanium Leg > --- UTILITY ---------- Advanced Heat Sink Large Storage Unit Visual Processing Unit Surveybot 17 Chip Makeshift Salvage Targeting Computer Propulsion Shielding > --- WEAPON ----------- Light Cannon > --- INVENTORY -------- Cold Fusion Reactor Carbon-fiber Leg Carbon-fiber Leg Overtuned Titanium Leg Overtuned Titanium Leg Overtuned Titanium Leg Large Storage Unit High-capacity Storage Unit Component Analysis Suite Botcube [Rating: 42] Favorites ----------- Power Light Nuclear Core Engine Light Ion Engine Power Core Light Nuclear Core Reactor Cold Fusion Reactor Propulsion Compact Wheel Treads Light Treads Leg Overtuned Titanium Leg Wheel Compact Wheel Hover Unit Improved Gravmag System Flight Unit Biomechanical Wings Utility Large Storage Unit Device Component Analysis Suite Storage Large Storage Unit Processor Visual Processing Unit Protection Propulsion Shielding Weapon Beam Cannon Energy Gun Small Laser Energy Cannon Beam Cannon Ballistic Gun Assault Rifle Ballistic Cannon Light Cannon Build | -11 -10 -10 -8 -6 -6 -6 ------- Run | Yrd Mat Sub Scr Fac Was Fac Slots Evolved 8 | . . . . 8 . . Power 1 | . . . . 1 . . Propulsion 2 | . . . . 2 . . Utility 4 | . . . . 4 . . Weapon 1 | . . . . 1 . . Parts Attached 45 | 6 10 1 8 12 5 3 Power 9 | 1 3 . 3 1 1 . Engine 5 | 1 1 . 3 . . . Core 2 | . 2 . . . . . Reactor 2 | . . . . 1 1 . Propulsion 20 | 2 4 . 5 4 3 2 Treads 1 | 1 . . . . . . Leg 12 | 1 . . 4 4 3 . Wheel 5 | . 4 . 1 . . . Hover 1 | . . . . . . 1 Flight 1 | . . . . . . 1 Utility 10 | 1 2 . . 5 1 1 Device 2 | . . . . 1 1 . Storage 4 | 1 1 . . 1 . 1 Processor 3 | . 1 . . 2 . . Hackware . | . . . . . . . Protection 1 | . . . . 1 . . Artifact . | . . . . . . . Weapon 6 | 2 1 1 . 2 . . Energy Gun 1 | 1 . . . . . . Energy Cannon 1 | . 1 . . . . . Ballistic Gun 1 | 1 . . . . . . Ballistic Cannon 3 | . . 1 . 2 . . Launcher . | . . . . . . . Special Weapon . | . . . . . . . Impact Weapon . | . . . . . . . Slashing Weapon . | . . . . . . . Piercing Weapon . | . . . . . . . Special Melee Weapon . | . . . . . . . Unidentified Prototypes 1 | . . . . . . 1 Parts Lost 23 | . 1 1 2 14 5 . Power 6 | . . . 1 4 1 . Propulsion 8 | . 1 . 1 4 2 . Utility 5 | . . . . 3 2 . Weapon 4 | . . 1 . 3 . . Highest Loss Streak 14 | . 1 1 2 14 5 . To Critical Strikes . | . . . . . . . Average Backups 11 | 2 11 14 13 9 1 4 Power 1 | . 1 2 2 2 . . Propulsion 6 | 1 6 9 8 3 . 3 Utility 1 | . 1 1 1 2 1 . Weapon 1 | . 2 2 2 . . . Tool/Special . | . . . . . . . Unused Backups 22 | . 5 1 7 . . 9 Power 1 | . 1 . . . . . Propulsion 13 | . 2 . 7 . . 4 Utility 5 | . 1 . . . . 4 Weapon 3 | . 1 1 . . . 1 Tool/Special . | . . . . . . . Average Slot Usage (%) 88 | . 92 99 100 76 39 17 Engine 2 | . 6 . . 9 . . Core 9 | . 7 14 13 . . . Leg 3 | . . . . 22 15 . Wheel 21 | . 26 28 27 . . . Storage 12 | . 14 14 14 6 4 5 Processor 11 | . 8 14 14 18 8 . Energy Cannon 10 | . 11 14 14 4 . . Ballistic Gun 4 | . 14 9 . . . . Ballistic Cannon 7 | . . 4 14 10 . . Peak Build Rating 42 | 6 11 11 18 42 37 14 Average Rating 13 | 4 8 10 11 33 22 12 On Entrance 9 | . 5 11 11 18 18 2 Naked Turns 52 | . . . . . 45 7 Heaviest Build 69 | 11 30 31 31 55 69 4 Greatest Support 76 | 20 32 32 38 76 72 10 Greatest Overweight (x) 18 | 2 3 . 1 2 18 1 Average Overweight (x) . | . . . . . . . Largest Inventory Capacity 20 | 8 15 15 15 20 20 5 Average Capacity 13 | 7 13 15 15 15 14 5 Most Carried 15 | 5 15 15 15 13 6 5 Average Carried 12 | 2 11 14 14 10 2 4 Final Capacity 20 | 8 15 15 15 20 5 5 Final Carried 15 | 5 15 14 14 7 4 5 Class Distribution -------------------- 86% | Mutant 8% | Scavenger-Skirmisher 4% | Scavenger-Mutant Dominant Class ---------------- Mutant | -10/Materials Mutant | -10/Subcaves Mutant | -8/Scraptown Scavenger-Skirmisher | -6/Factory Scavenger-Mutant | -6/Waste Mutant | -6/Factory Resources | -11 -10 -10 -8 -6 -6 -6 ----------- Run | Yrd Mat Sub Scr Fac Was Fac Matter Collected 677 | 229 224 29 101 94 . . Remotely . | . . . . . . . Salvage Created 578 | . 338 60 70 110 . . Parts 26 | . 19 3 . 4 . . Haulers Intercepted . | . . . . . . . Recyclers Shooed . | . . . . . . . Parts Field Recycled . | . . . . . . . Retrieved Matter . | . . . . . . . Parts Self-Destructed 9 | . . 9 . . . . Prevented . | . . . . . . . Kills | -11 -10 -10 -8 -6 -6 -6 ------- Run | Yrd Mat Sub Scr Fac Was Fac Combat Hostiles Destroyed 13 | . 8 1 1 3 . . Guns 3 | . 3 . . . . . Cannons 7 | . 3 1 . 3 . . AOE 2 | . 2 . . . . . Classes Destroyed 6 | . 4 1 1 . . . Watcher 3 | . 3 . . . . . Swarmer 2 | . 2 . . . . . Grunt 9 | . 6 . . 3 . . Subdweller 1 | . . 1 . . . . Federalist 1 | . 1 . . . . . Scrapper 1 | . . . 1 . . . Best Kill Streak 5 | . 5 1 1 2 . . Combat Bots Only 4 | . 4 1 1 2 . . Max Kills in Single Turn 2 | . 2 1 1 1 . . Gunslinging . | . . . . . . . Exploded 2 | . 2 . . . . . Melee . | . . . . . . . Uniques/NPCs Destroyed . | . . . . . . . Combat | -11 -10 -10 -8 -6 -6 -6 -------- Run | Yrd Mat Sub Scr Fac Was Fac Hostile Shots Fired 206 | . 37 2 20 97 6 44 Missed 63 | . 11 . 8 25 . 19 Hits 143 | . 26 2 12 72 6 25 Melee 14 | . . . . . 6 8 Projectile 129 | . 26 2 12 72 . 17 AOE 2 | . . . . . . 2 Critical Strikes 9 | . . . 2 2 3 2 Damage Taken 2929 | . 403 59 263 1467 264 473 Core 1033 | . 149 . 32 234 209 409 Absorbed by Shields . | . . . . . . . Redirected to Shielding 50 | . . . . 50 . . Core Remaining (%) 63 | 100 . . 27 . . . Volleys Fired 71 | . 32 9 5 25 . . Largest 3 | . 2 2 2 3 . . Hottest 120 | . 80 80 90 120 . . Shots Fired 144 | . 64 17 10 53 . . Gun 51 | . 43 8 . . . . Cannon 93 | . 21 9 10 53 . . Launcher . | . . . . . . . Special . | . . . . . . . Kinetic 90 | . 32 8 5 45 . . Thermal 54 | . 32 9 5 8 . . Explosive . | . . . . . . . Electromagnetic . | . . . . . . . Robot Hit Streak 10 | . 6 5 2 10 . . Robot Miss Streak 6 | . 5 . 2 6 . . Penetration Max . | . . . . . . . Secondary Targets 1 | . 1 . . . . . Max Gunslinging Chain 1 | . 1 . . . . . Shots Hit Robots 65 | . 26 3 5 31 . . Core Hits 29 | . 15 2 1 11 . . Critical Kills 1 | . . . 1 . . . Critical Parts Destroyed . | . . . . . . . Critical Strikes 1 | . . . 1 . . . Meltdown 1 | . . . 1 . . . Melee Attacks . | . . . . . . . Impact . | . . . . . . . Slashing . | . . . . . . . Piercing . | . . . . . . . Sneak Attacks . | . . . . . . . Combat Hostiles . | . . . . . . . Follow-up Attacks . | . . . . . . . Damage Inflicted 1726 | . 1047 47 109 523 . . Guns 239 | . 227 12 . . . . Cannons 859 | . 192 35 109 523 . . Explosions 628 | . 628 . . . . . Melee . | . . . . . . . Ramming . | . . . . . . . Kinetic 642 | . 172 12 39 419 . . Thermal 456 | . 247 35 70 104 . . Explosive 628 | . 628 . . . . . Electromagnetic . | . . . . . . . Impact . | . . . . . . . Slashing . | . . . . . . . Piercing . | . . . . . . . Highest Corruption 19 | . . . . . 19 19 Average Corruption 16 | . . . . . 10 19 Corruption Purged . | . . . . . . . Corruption Blocked . | . . . . . . . Effects 19 | . . . . . 6 13 Message Errors 5 | . . . . . . 5 Matter Fused 2 | . . . . . 1 1 Heat Flow Errors 2 | . . . . . 1 1 Energy Discharges 2 | . . . . . . 2 Data Loss (minor) 7 | . . . . . 4 3 Alerts 1 | . . . . . . 1 Overload Shots . | . . . . . . . Overflow Damage 9 | . 9 . . . . . Projectiles . | . . . . . . . Explosions 9 | . 9 . . . . . Melee . | . . . . . . . Knockbacks 13 | . . . 2 11 . . Impact . | . . . . . . . Kinetic 11 | . . . 2 9 . . Secondary 2 | . . . . 2 . . Self-Inflicted Damage 73 | . 73 . . . . . Shots 1 | . 1 . . . . . Rammed . | . . . . . . . Targets Rammed . | . . . . . . . Kicked . | . . . . . . . Crushed . | . . . . . . . Highest Temperature 360 | . 258 1 97 360 246 230 Average Temperature 125 | . 92 1 36 220 124 120 Received Heat Transfer 998 | . 153 18 133 640 . 54 Effects 2 | . . . . 2 . . Shutdowns 2 | . . . . 2 . . Siege Activations . | . . . . . . . Martial Activations . | . . . . . . . Shielding Activations . | . . . . . . . Robots Disrupted . | . . . . . . . Combat Hostiles . | . . . . . . . Robots Corrupted . | . . . . . . . Combat Hostiles . | . . . . . . . Parts Fried . | . . . . . . . Impact Corruptions . | . . . . . . . Robots Melted 1 | . . . 1 . . . Combat Hostiles 1 | . . . 1 . . . Parts Melted 6 | . 2 . 4 . . . Heat Transferred 952 | . 532 74 124 222 . . Parts Sabotaged . | . . . . . . . Parts Stolen . | . . . . . . . Parts Stripped . | . . . . . . . Power Chain Reactions . | . . . . . . . Alert | -11 -10 -10 -8 -6 -6 -6 ------- Run | Yrd Mat Sub Scr Fac Was Fac Maximum Alert Level . | . . . . . . . Low Security (%) 100 | 100 100 . . 100 100 100 Level 1 . | . . . . . . . Level 2 . | . . . . . . . Level 3 . | . . . . . . . Level 4 . | . . . . . . . Level 5 . | . . . . . . . High Security . | . . . . . . . Max Security . | . . . . . . . Peak Influence 158 | . 158 . . 30 . 15 Initial . | . . . . . . . Average 19 | . 35 . . 2 . . Influence Increases 404 | . 305 . . 72 . 27 Destroy 0b10 Robot/C 220 | . 160 . . 60 . . Destroy 0b10 Robot/NC 15 | . 15 . . . . . Destroy Leader 46 | . 36 . . 10 . . Successful Hack 36 | . 22 . . 2 . 12 Disable Machine 45 | . 45 . . . . . Destroy Structure 27 | . 27 . . . . . Lose Combat Pursuer 15 | . . . . . . 15 Influence Decreases 399 | . 284 21 . 72 . 22 Entered New Map 11 | . . 11 . . . . Time Decay 358 | . 284 10 . 42 . 22 Lost Part 30 | . . . . 30 . . Squads Dispatched 4 | . 1 . . 2 . 1 Investigation 2 | . 1 . . 1 . . Extermination . | . . . . . . . Reinforcement 2 | . . . . 1 . 1 Assault . | . . . . . . . Garrison . | . . . . . . . Intercept . | . . . . . . . Searches Triggered . | . . . . . . . Construction Impeded . | . . . . . . . Haulers Reinforced . | . . . . . . . Active Scanning Responses . | . . . . . . . Cargo Convoy Interrupts . | . . . . . . . Stealth | -11 -10 -10 -8 -6 -6 -6 --------- Run | Yrd Mat Sub Scr Fac Was Fac Distress Signals 2 | . 1 . 1 . . . Communications Jammed . | . . . . . . . Distress Signals . | . . . . . . . Times Spotted 45 | . 14 1 12 8 6 4 Peak Tracking Total 6 | . 5 1 4 5 6 4 Tactical Retreats 2 | . . . 1 . . 1 Traps | -11 -10 -10 -8 -6 -6 -6 ------- Run | Yrd Mat Sub Scr Fac Was Fac Traps Triggered 5 | . 2 . . 1 . 2 Indirectly . | . . . . . . . Trap Hack Attempts . | . . . . . . . Triggered . | . . . . . . . Disarmed . | . . . . . . . Reprogrammed . | . . . . . . . Reused . | . . . . . . . Traps Extracted . | . . . . . . . Installed . | . . . . . . . Triggered . | . . . . . . . Machines | -11 -10 -10 -8 -6 -6 -6 ---------- Run | Yrd Mat Sub Scr Fac Was Fac Machines Disabled 3 | . 3 . . . . . Max in Single Turn 2 | . 2 . . . . . Machines Repaired . | . . . . . . . Machines Dismantled . | . . . . . . . Machines Sabotaged . | . . . . . . . Overloaded Fab Kills . | . . . . . . . Hacking | -11 -10 -10 -8 -6 -6 -6 --------- Run | Yrd Mat Sub Scr Fac Was Fac Machines Accessed 19 | . 8 1 8 1 . 1 Terminals 8 | . 8 . . . . . Fabricators . | . . . . . . . Repair Stations . | . . . . . . . Recycling Units . | . . . . . . . Scanalyzers 2 | . . . . 1 . 1 Garrison Access . | . . . . . . . Total Hacks 96 | . 24 4 64 3 . 1 Successful 80 | . 8 4 64 3 . 1 Failed 16 | . 16 . . . . . Catastrophic 2 | . 2 . . . . . Database Lockouts . | . . . . . . . Manual 6 | . 6 . . . . . Terminals 24 | . 24 . . . . . Fabricators . | . . . . . . . Repair Stations . | . . . . . . . Recycling Units . | . . . . . . . Scanalyzers 4 | . . . . 3 . 1 Garrison Access . | . . . . . . . Terminal Hacks 76 | . 8 4 64 . . . Record 71 | . 3 4 64 . . . Prototype ID Bank 3 | . 3 . . . . . Locate Traps 1 | . 1 . . . . . Zone Layout 1 | . 1 . . . . . Fabricator Hacks . | . . . . . . . Repair Station Hacks . | . . . . . . . Recycling Unit Hacks . | . . . . . . . Scanalyzer 4 | . . . . 3 . 1 Insert Component 3 | . . . . 2 . 1 Analyze 1 | . . . . 1 . . Garrison Access Hacks . | . . . . . . . Unauthorized Hacks . | . . . . . . . Terminals . | . . . . . . . Fabricators . | . . . . . . . Repair Stations . | . . . . . . . Recycling Units . | . . . . . . . Scanalyzers . | . . . . . . . Garrison Access . | . . . . . . . Data Cores Recovered 1 | . 1 . . . . . Used . | . . . . . . . Hacking Detections 9 | . 8 . . 1 . . Full Trace Events 1 | . . . . 1 . . Feedback Events . | . . . . . . . Feedback Blocked . | . . . . . . . Robot Schematics Acquired . | . . . . . . . Robots Built . | . . . . . . . Authchips . | . . . . . . . Time . | . . . . . . . Total Robot Build Rating . | . . . . . . . Part Schematics Acquired 1 | . . . . 1 . . Parts Built . | . . . . . . . Authchips . | . . . . . . . Time . | . . . . . . . Total Part Build Rating . | . . . . . . . Parts Repaired . | . . . . . . . Time . | . . . . . . . Parts Recycled . | . . . . . . . Recycled Matter . | . . . . . . . Retrieved Matter . | . . . . . . . Retrieved Components . | . . . . . . . Parts Scanalyzed 1 | . . . . 1 . . Part Schematics Acquired 1 | . . . . 1 . . Parts Damaged . | . . . . . . . Bothacking | -11 -10 -10 -8 -6 -6 -6 ------------ Run | Yrd Mat Sub Scr Fac Was Fac Used RIF Installer . | . . . . . . . Robots Hacked . | . . . . . . . Non-combat . | . . . . . . . Combat . | . . . . . . . Robot Hacks Applied . | . . . . . . . Relay Couplers Released . | . . . . . . . Fabnet Peak Effective % . | . . . . . . . Robots Rewired . | . . . . . . . Allies Hacked . | . . . . . . . Hacks Repelled . | . . . . . . . Allies | -11 -10 -10 -8 -6 -6 -6 -------- Run | Yrd Mat Sub Scr Fac Was Fac Total Allies 1 | . . . . . 1 . Largest Group 1 | . . . . . 1 . Highest-Rated Group 31 | . . . . . 31 . Highest-Rated Ally 31 | . . . . . 31 . Total Orders . | . . . . . . . Ally Attacks 5 | . . . . . 5 . Total Damage 84 | . . . . . 84 . Kills . | . . . . . . . Allies Corrupted . | . . . . . . . Allies Melted . | . . . . . . . Intel | -11 -10 -10 -8 -6 -6 -6 ------- Run | Yrd Mat Sub Scr Fac Was Fac Active Infowar (turns) 3471 | . 597 689 1691 403 91 . Optics 3471 | . 597 689 1691 403 91 . Robot Analysis Total . | . . . . . . . Derelict Logs Recovered 2 | . . 2 . . . . Drone Launches . | . . . . . . . Drone Recoveries . | . . . . . . . Exploration | -11 -10 -10 -8 -6 -6 -6 ------------- Run | Yrd Mat Sub Scr Fac Was Fac Turns Passed 4313 | 98 1002 689 1691 403 136 294 Spaces Moved 3907 | 58 837 631 1621 204 149 407 Core 118 | 10 7 . . . 83 18 Treads 47 | 39 8 . . . . . Legs 313 | 9 . . 34 204 66 . Wheels 3040 | . 822 631 1587 . . . Hover 268 | . . . . . . 268 Flight 121 | . . . . . . 121 Fastest Speed 40 | 50 100 100 100 100 50 40 Average Speed 97 | 147 101 100 100 132 85 54 Slowest Speed 950 | 190 200 100 170 240 950 100 Overloaded Moves . | . . . . . . . Propulsion Burnouts . | . . . . . . . Robots Hopped 2 | . . . . . . 2 Potential Cave-ins . | . . . . . . . Cave-ins Triggered . | . . . . . . . Exploration Rate (%) 46 | 3 99 31 84 4 96 5 Regions Visited 6 Branch Regions 2 Pre-discovered Areas 1 | . . 1 . . . . Known Exits Taken . | . . . . . . . Unknown Exits Taken 4 | 1 1 1 1 . . . Scrap Searched . | . . . . . . . Spaces Dug . | . . . . . . . Terrain Destroyed 25 | . 25 . . . . . Melee . | . . . . . . . Projectile . | . . . . . . . AOE 25 | . 25 . . . . . Terrain Rammed . | . . . . . . . Walls Destroyed . | . . . . . . . Machines Disabled . | . . . . . . . Actions | -11 -10 -10 -8 -6 -6 -6 --------- Run | Yrd Mat Sub Scr Fac Was Fac Total 4282 | 68 929 672 1685 293 157 478 Wait 165 | . 22 28 24 33 . 58 Move 3898 | 57 836 630 1620 204 148 403 Hop 2 | . . . . . . 2 Pick Up 56 | 4 18 2 13 9 3 7 Fast Attach 10 | 6 2 . . . . 2 Attach 32 | . 4 1 6 14 6 1 Detach 2 | 1 1 . . . . . Swap 11 | . 4 . 3 4 . . Drop 35 | . 10 2 14 4 . 5 Fire 71 | . 32 9 5 25 . . Melee . | . . . . . . . Ram . | . . . . . . . Kick . | . . . . . . . Crush . | . . . . . . . Escape Stasis . | . . . . . . . Rewire . | . . . . . . . Trap . | . . . . . . . Miscellaneous . | . . . . . . . Route ------- -11/Scrapyard -10/Materials (discovered 6 exits: [*Mat x3] / [*Min x2] / *Sub) -10/Subcaves -8/Scraptown (discovered 2 exits: *Fac x2) -6/Factory -6/Waste -6/Factory (discovered 1 exit: [*Fac]) History --------- Turn | Location | Event 8 | -11/Scrapyard | Discovered new exit (range 16) 99 | -11/Scrapyard | Entered Materials 100 | -10/Materials | Met a group of wandering Federalists 205 | -10/Materials | Discovered new exit (range 14) 330 | -10/Materials | Build established: Mutant 338 | -10/Materials | Discovered new exit (range 12) 495 | -10/Materials | Discovered new exit (range 8) 570 | -10/Materials | Discovered new exit (range 14) 652 | -10/Materials | Core integrity fell below 50% 865 | -10/Materials | Discovered new exit (range 6) 905 | -10/Materials | Discovered new exit (range 9) 1101 | -10/Materials | Entered Subcaves 1102 | -10/Subcaves | Continued accompanying wandering Federalists (3) 1102 | -10/Subcaves | Approached by a straggling Scientist 1102 | -10/Subcaves | Learned Materials security intel 1325 | -10/Subcaves | A swath of the cavern ceiling suddenly collapsed 1390 | -10/Subcaves | Visited Clippyterm 1393 | -10/Subcaves | Learned Factory fabricator intel 1643 | -10/Subcaves | A swath of the cavern ceiling suddenly collapsed 1790 | -10/Subcaves | Entered Scraptown 1963 | -8/Scraptown | Visited TADAMA 2008 | -8/Scraptown | Visited Spacefarers 2129 | -8/Scraptown | Heard Great Nut preacher, LISTEN AND RECITE! 2225 | -8/Scraptown | Discovered new exit (range 5) 2341 | -8/Scraptown | Visited Shadow of the Wyrm 2389 | -8/Scraptown | Visited UFD Registry 2394 | -8/Scraptown | Registered with UFD as "Chainback" 2406 | -8/Scraptown | Visited Artisan Demo Area 2458 | -8/Scraptown | Visited Cyclists 2470 | -8/Scraptown | Entered Cyclist Reading Room 2499 | -8/Scraptown | Visited Assassins FH 2854 | -8/Scraptown | Visited Curators Association 2903 | -8/Scraptown | Visited Observation Area 2952 | -8/Scraptown | Visited Botcube Research 2959 | -8/Scraptown | Found Botcube 2986 | -8/Scraptown | Visited Abandonware Association 3001 | -8/Scraptown | Learned abandonware demo "HACKBUD.EXE" 3001 | -8/Scraptown | Learned abandonware demo "REBOOT5.EXE" 3024 | -8/Scraptown | Visited Junk Repository 3052 | -8/Scraptown | Visited Cartography Club 3094 | -8/Scraptown | Found Surveybot 17 Chip 3148 | -8/Scraptown | Visited Research Penetration Think Tank 3190 | -8/Scraptown | Met Optimus 3190 | -8/Scraptown | Accepted into 0bPrime 3280 | -8/Scraptown | Discovered new exit (range 3) 3354 | -8/Scraptown | Civil war broke out across Scraptown 3446 | -8/Scraptown | Lost 4 allies 3481 | -8/Scraptown | Entered Factory 3481 | -6/Factory | Evolved 8 slots: Power x1, Propulsion x2, Utility x4, Weapon x1 3482 | -6/Factory | Loaded intel: 6 fabricator locations 3680 | -6/Factory | Build established: Scavenger-Skirmisher 3884 | -6/Factory | Sucked down chute 3884 | -6/Factory | Entered Waste 3885 | -6/Waste | Met a frightened Derelict 3897 | -6/Waste | Spotted C-40 Crusher 3899 | -6/Waste | EMP discharged 3914 | -6/Waste | Lost 14 parts (4p4n3u3w) 3948 | -6/Waste | Spotted C-40 Crusher 3954 | -6/Waste | Spotted C-40 Crusher 3954 | -6/Waste | Spotted C-40 Crusher 3963 | -6/Waste | Crushed by Compactor (1 part destroyed, 1 dropped) 3967 | -6/Waste | Crushed by Compactor (1 part destroyed, 2 dropped) 3972 | -6/Waste | Crushed by Compactor (1 part destroyed, 2 dropped) 3973 | -6/Waste | Crushed by Compactor (1 part destroyed, 1 dropped) 3975 | -6/Waste | Crushed by Compactor (1 part destroyed) 3977 | -6/Waste | Core integrity fell below 50% 3996 | -6/Waste | Spotted C-40 Crusher 3997 | -6/Waste | Spotted C-40 Crusher 3999 | -6/Waste | EMP discharged 3999 | -6/Waste | System corruption reached 10% 4006 | -6/Waste | Lost 5 parts (1p2n2u) 4012 | -6/Waste | Discovered new exit (range 11) 4020 | -6/Waste | Entered Factory 4261 | -6/Factory | Build established: Mutant 4276 | -6/Factory | Discovered new exit (range 11) 4308 | -6/Factory | Core integrity fell below 20% 4314 | -6/Factory | Destroyed by Y-54 Guardian with Gatling Laser Last Messages --------------- reinforcements to area. 04273_ Triggered Heavy Explosive Trap. 04273_ An explosion rips through the floor. 04273_ U-05 Engineer builds a Wall. 04276_ EXIT=FOUND 04278_ ALERT: All DSF locations entering lockdown mode. 04279_ U-05 Engineer lays Concrete. 04281_ System corrupted: Component data lost. 04282_ U-05 Engineer lays Concrete. 04282_ Knocked back. 04294_ Imp. Gravmag System severed. 04298_ System corrupted: Heat flow error (+267). 04303_ U-05 Engineer lays Concrete. 04307_ Biomechanical Wings severed. 04307_ U-05 Engineer lays Concrete. 04310_ Triggered Heavy Explosive Trap. 04310_ An explosion rips through the floor. 04310_ U-05 Engineer destroyed. 04310_ C-17 Slicer destroyed. 04313_ System corrupted: Energy discharge (-23). Map ----- +----------------------------------------------------+ | ?????????????????????????????????????????????????? | | ?????????????????????????????????????????????????? | | ?????????????????????????????????????????????????? | | ?????????????????????????????????????????????????? | | ?????????????????????????????????????????????????? | | ?????????????????????????????????????????????????? | | ?????????????????????????????????????????????????? | | ?????????????????????????????????????????????????? | | ?????????????????????????????????????????????????? | | ?????????????????????????????????????????????????? | | ?????????????????????????????????????????????????? | | ?????????????????????????????????????????????????? | | ?????????????????????????????????????????????????? | | ?????????????????????????????????????????????????? | | ?????????????????????????????????????????????????? | | ????????????????????????????????################?? | | ????????????????????????????????# * ! #?? | | ???????????????????????????###??# """""" #?? | | ????????????????????????#### #### """""" [ #?? | | ?????????????????######## # """""" #?? | | ?????????? H + ] """""" [#?? | | ?????????????????######## # #?? | | ???????????????????????# ##+####+#+##+##?? | | ???????????????????????# #??? | | ??????????????????####### Y #??? | | ??????????????????+ @ c =% #??? | | ??????????????????####### ###### #### | | ????????????????????????# / # | | ????????????????????????# //=# | | ????????????????????????# = # | | ????????????????????????# """" //# | | ????????????????????????# """" = # | | ????????????????????????# """" | | ????????????????????????# """" # | | ????????????????????????# """" | | ????????????????????????# """" # ###### | | ????????????????????????# """" #????# | | ????????????????????????# # #????# | | ????????????????????????# # #????# | | ????????????????????????############## ######+ | | ????????????????????????############## # | | ????????????????????????# # #""" "" | | ????????????????????????# # #""" "" | | ????????????????????????# # #"S "" | | ????????????????????????# # #""" " | | ????????????????????????# # # "" " | | ????????????????????????# + + | | ????????????????????????# # # | | ????????????????????????# # # & | | ????????????????????????# # # ! | +----------------------------------------------------+ Best States ------------- Heat Dissipation 56 Energy Generation 33 Energy Capacity 425 Matter Stores 300 Matter Capacity 500 Sight Range 18 Terrain Scan Density 1210 Propulsion Shielding 33 Evasion (%) 62 Recoil Reduction 1 Salvage Targeting 4 Item Schematics ----------------- Ovr. Titanium Leg | -6/Factory | Scanalyzed Robot Schematics ------------------ None Fabricated ------------ Nothing Repaired ---------- Nothing Alien Tech Used ----------------- None Achievements -------------- Backstab It's Just You Librarian Made in Tau Ceti IV Risk Taker System Compromised Universal Adapter Challenges ------------ None Game ------ Seed TerrainPortableChronowheel Manual? 0 Play Time 01:26:03 Cumulative 8.7 hours Start 2025.05.31 @ 02:30:07 End 2025.05.31 @ 04:07:15 Sessions 1 Manual Loads 0 Difficulty Rogue Special Mode None Game No. 8 Rogue 8 Adventurer 0 Explorer 0 Win Type - Total 0 Types 0/0/0/0/0/0/0/0/0/0 Lore% 10 Gallery% 8 Achievement% 10 Wizard Run 0 Options --------- Layout 0 ASCII 0 Keyboard 0 Movement Mouse Keybinds 0 Fullscreen 1 Font 18/SmallcapsGlow Map View 76x50 Zoom Use 0% Tactical HUD 1 Map Filters NONE Filters NONE Steam X RUN: 8f91d411-bcd0-4da1-8f70-b60c33517e9e